fUST/lending_fUST_20250505
["ID","MTS","AMOUNT","RATE_DAILY","PERIOD"]
[359894945,1746405952797,-400.0,0.00035616,14]
[359894946,1746405952817,-400.0,0.00035616,14]
[359894947,1746405952837,-400.0,0.00035616,14]
[359894948,1746405952857,-171.08122929,0.00035616,14]
[359894949,1746405952877,-585.25,0.00035616,14]
[359894950,1746405952898,-972.77,0.00035616,14]
[359894951,1746405952918,-400.0,0.00035616,14]
[359894952,1746405952938,-414.52549934,0.00035616,14]
[359894953,1746405952958,-501.58,0.00035616,14]
[359894954,1746405952978,-400.0,0.00035616,14]
[359894955,1746405952999,-400.0,0.00035616,14]
[359894956,1746405953020,-400.0,0.00035616,14]
[359894957,1746405953041,-483.74,0.00035616,14]
[359894958,1746405953062,-400.0,0.00035616,14]
[359894959,1746405953084,-400.0,0.00035616,14]
[359894960,1746405953105,-400.0,0.00035616,14]
[359894961,1746405953126,-400.0,0.00035616,14]
[359894962,1746405953147,-401.45,0.00035616,14]
[359894963,1746405953168,-501.12751759,0.00035616,14]
[359894964,1746405953189,-400.0,0.00035616,14]
[359894965,1746405953211,-400.0,0.00035616,14]
[359894966,1746405953233,-400.0,0.00035616,14]
[359894967,1746405953254,-400.0,0.00035616,14]
[359894968,1746405953275,-400.0,0.00035616,14]
[359894969,1746405953298,-400.0,0.00035616,14]
[359894970,1746405953323,-1073.18,0.00035616,14]
[359894971,1746405953342,-400.0,0.00035616,14]
[359894972,1746405953363,-400.0,0.00035616,14]
[359894973,1746405953383,-400.0,0.00035616,14]
[359894974,1746405953408,-400.0,0.00035616,14]
[359894975,1746405953431,-400.0,0.00035616,14]
[359894976,1746405953453,-3814.82467386,0.00035616,14]
[359894977,1746406030092,-288.95941133,0.00035288,2]
[359894978,1746406030117,-160.0,0.00035606,3]
[359894979,1746406030148,-184.67088604,0.00035615,7]
[359894980,1746406030170,-224.47110262,0.00035615,2]
[359894981,1746406040090,-250.09606155,0.00035188,120]
[359894982,1746406052087,-333.82030424,0.00026,30]
[359894983,1746406052111,-901.44910342,0.00035188,120]
[359894984,1746406052135,-175.52889738,0.00035615,2]
[359894985,1746406052161,-3025.50532614,0.00035616,14]
[359894986,1746406052189,-400.0,0.00035616,14]
[359894987,1746406052213,-403.12679645,0.00035616,14]
[359894988,1746406052236,-500.0,0.00035616,14]
[359894989,1746406052260,-575.18519684,0.00035616,14]
[359894990,1746406052283,-400.0,0.00035616,14]
[359894991,1746406052305,-400.0,0.00035616,14]
[359894992,1746406052332,-400.0,0.00035616,14]
[359894993,1746406052356,-400.0,0.00035616,14]
[359894994,1746406052384,-429.85819199,0.00035616,14]
[359894995,1746406052408,-400.0,0.00035616,14]
[359894996,1746406052434,-400.0,0.00035616,14]
[359894997,1746406052455,-400.0,0.00035616,14]
[359894998,1746406052476,-400.0,0.00035616,14]
[359894999,1746406052499,-476.63,0.00035616,14]
[359895000,1746406052522,-400.0,0.00035616,14]
[359895001,1746406052547,-489.05,0.00035616,14]
[359895002,1746406052572,-400.0,0.00035616,14]
[359895003,1746406052595,-400.0,0.00035616,14]
[359895004,1746406052619,-400.0,0.00035616,14]
[359895005,1746406052643,-400.0,0.00035616,14]
[359895006,1746406052669,-400.0,0.00035616,14]
[359895007,1746406052692,-400.0,0.00035616,14]
[359895008,1746406052715,-792.64,0.00035616,14]
[359895009,1746406052737,-534.05,0.00035616,14]
[359895010,1746406052762,-400.0,0.00035616,14]
[359895011,1746406052787,-400.0,0.00035616,14]
[359895012,1746406052812,-400.0,0.00035616,14]
[359895013,1746406052836,-692.97,0.00035616,14]
[359895014,1746406052858,-687.53,0.00035616,14]
[359895015,1746406052881,-400.0,0.00035616,14]
[359895016,1746406052906,-400.0,0.00035616,14]
[359895017,1746406052930,-480.55709365,0.00035616,14]
[359895018,1746406052952,-400.0,0.00035616,14]
[359895019,1746406052973,-400.0,0.00035616,14]
[359895020,1746406052995,-1000.0,0.00035616,14]
[359895021,1746406053018,-338.13563318,0.00035616,14]
[359895022,1746406053043,-585.64,0.00035616,14]
[359895023,1746406053070,-400.0,0.00035616,14]
[359895024,1746406053095,-400.0,0.00035616,14]
[359895025,1746406053123,-400.0,0.00035616,14]
[359895026,1746406053148,-202.13209969,0.00035616,14]
[359895027,1746406053171,-400.0,0.00035616,14]
[359895028,1746406053195,-400.0,0.00035616,14]
[359895029,1746406053218,-400.0,0.00035616,14]
[359895030,1746406053241,-414.03848757,0.00035616,14]
[359895031,1746406053264,-400.0,0.00035616,14]
[359895032,1746406053287,-400.0,0.00035616,14]
[359895033,1746406053310,-262.51711578,0.00035616,14]
[359895037,1746406151094,-185.82646373,0.00033516,2]
[359895038,1746406151121,-1254.23847112,0.00033516,2]
[359895040,1746406201814,200.0,0.00034057,2]
[359895041,1746406206487,192.81,0.00035,5]
[359895042,1746406206709,192.81,0.00035,5]
[359895067,1746406232238,-186.0,0.000355,120]
[359895069,1746406232249,-166.07261926,0.00035515,120]
[359895072,1746406232259,-247.22632304,0.00035516,2]
[359895074,1746406232269,-186.0,0.000356,14]
[359895076,1746406232279,-220.0,0.00035615,2]
[359895078,1746406232289,-137.48288422,0.00035616,14]
[359895080,1746406232299,-500.0,0.00035616,14]
[359895082,1746406232309,-199.13664228,0.00035616,14]
[359895084,1746406232321,-247.24335772,0.00035616,14]
[359895086,1746406232330,-112.88022269,0.00035616,14]
[359895089,1746406232343,-287.11977731,0.00035616,14]
[359895091,1746406232354,-400.0,0.00035616,14]
[359895093,1746406232364,-400.0,0.00035616,14]
[359895094,1746406232373,-400.0,0.00035616,14]
[359895097,1746406232383,-400.0,0.00035616,14]
[359895099,1746406232393,-438.46,0.00035616,14]
[359895101,1746406232407,-201.31831115,0.00035616,14]
[359895103,1746406232417,-510.96321179,0.00035616,14]
[359895105,1746406232427,-400.0,0.00035616,14]
[359895107,1746406232436,-400.0,0.00035616,14]
[359895109,1746406232447,-400.0,0.00035616,14]
[359895111,1746406232456,-400.0,0.00035616,14]
[359895113,1746406232465,-400.0,0.00035616,14]
[359895115,1746406232477,-428.27,0.00035616,14]
[359895117,1746406232486,-505.99172844,0.00035616,14]
[359895119,1746406232496,-400.0,0.00035616,14]
[359895121,1746406232505,-400.0,0.00035616,14]
[359895123,1746406232515,-400.0,0.00035616,14]
[359895125,1746406232527,-400.0,0.00035616,14]
[359895127,1746406232537,-400.0,0.00035616,14]
[359895129,1746406232546,-400.0,0.00035616,14]
[359895130,1746406232556,-400.0,0.00035616,14]
[359895131,1746406232566,-926.28670011,0.00035616,14]
[359895168,1746406238491,-29.10669363,0.00035616,14]
[359895169,1746406238508,-928.26660626,0.00035616,14]
[359895170,1746406238517,-400.0,0.00035616,14]
[359895171,1746406238527,-155.65385708,0.00035616,14]
[359895172,1746406238536,-400.0,0.00035616,14]
[359895173,1746406238546,-400.0,0.00035616,14]
[359895174,1746406238556,-400.0,0.00035616,14]
[359895175,1746406238565,-400.0,0.00035616,14]
[359895176,1746406238575,-400.0,0.00035616,14]
[359895177,1746406238585,-400.0,0.00035616,14]
[359895178,1746406238595,-400.0,0.00035616,14]
[359895179,1746406238605,-400.0,0.00035616,14]
[359895180,1746406238614,-400.0,0.00035616,7]
[359895181,1746406238624,-400.0,0.00035616,14]
[359895182,1746406238634,-400.0,0.00035616,14]
[359895183,1746406238644,-553.05,0.00035616,14]
[359895184,1746406238653,-400.0,0.00035616,14]
[359895185,1746406238662,-229.02752672,0.00035616,14]
[359895186,1746406238672,-400.0,0.00035616,14]
[359895187,1746406238681,-443.95362975,0.00035616,14]
[359895188,1746406238691,-411.83,0.00035616,14]
[359895189,1746406238701,-400.0,0.00035616,14]
[359895190,1746406238711,-400.0,0.00035616,14]
[359895191,1746406238721,-400.0,0.00035616,14]
[359895192,1746406238730,-400.0,0.00035616,14]
[359895193,1746406238739,-400.0,0.00035616,14]
[359895194,1746406238749,-400.0,0.00035616,14]
[359895195,1746406238759,-400.0,0.00035616,14]
[359895196,1746406238768,-411.27,0.00035616,14]
[359895197,1746406238778,-436.91,0.00035616,14]
[359895198,1746406238787,-400.0,0.00035616,14]
[359895199,1746406238797,-400.0,0.00035616,14]
[359895200,1746406238807,-400.0,0.00035616,14]
[359895201,1746406238816,-400.0,0.00035616,14]
[359895202,1746406238825,-487.8,0.00035616,14]
[359895203,1746406238834,-400.0,0.00035616,14]
[359895204,1746406239011,-768.3,0.00035616,14]
[359895205,1746406239021,-400.0,0.00035616,14]
[359895206,1746406239031,-400.0,0.00035616,14]
[359895207,1746406239041,-400.0,0.00035616,14]
[359895208,1746406239050,-400.0,0.00035616,14]
[359895209,1746406239060,-151.35,0.00035616,14]
[359895210,1746406239070,-400.0,0.00035616,14]
[359895211,1746406239080,-400.0,0.00035616,14]
[359895212,1746406239089,-560.86,0.00035616,14]
[359895213,1746406239099,-400.0,0.00035616,14]
[359895214,1746406239109,-400.0,0.00035616,14]
[359895215,1746406239128,-932.24,0.00035616,14]
[359895216,1746406239140,-400.0,0.00035616,14]
[359895217,1746406239150,-400.0,0.00035616,14]
[359895218,1746406239160,-1028.46,0.00035616,14]
[359895219,1746406239170,-400.0,0.00035616,14]
[359895220,1746406239180,-400.0,0.00035616,14]
[359895221,1746406239190,-480.69,0.00035616,14]
[359895222,1746406239200,-400.0,0.00035616,14]
[359895223,1746406239210,-400.0,0.00035616,14]
[359895224,1746406239221,-209.93,0.00035616,14]
[359895225,1746406239231,-1176.96,0.00035616,14]
[359895226,1746406239242,-400.0,0.00035616,14]
[359895227,1746406239252,-400.0,0.00035616,14]
[359895228,1746406239263,-400.0,0.00035616,14]
[359895229,1746406239273,-400.0,0.00035616,14]
[359895230,1746406239283,-400.0,0.00035616,14]
[359895231,1746406239294,-548.39,0.00035616,14]
[359895232,1746406239305,-401.04,0.00035616,14]
[359895233,1746406239315,-262.18429362,0.00035616,14]
[359895234,1746406239326,-522.24476823,0.00035616,14]
[359895235,1746406239336,-6555.32,0.00035616,14]
[359895236,1746406239347,-400.0,0.00035616,14]
[359895237,1746406239357,-400.0,0.00035616,14]
[359895238,1746406239367,-1924.84,0.00035616,14]
[359895239,1746406239378,-400.0,0.00035616,14]
[359895240,1746406239388,-400.0,0.00035616,14]
[359895241,1746406239398,-502.45964425,0.00035616,14]
[359895242,1746406239410,-302.51748494,0.00035616,14]
[359895243,1746406239420,-400.0,0.00035616,14]
[359895244,1746406239429,-400.0,0.00035616,14]
[359895245,1746406239439,-759.62,0.00035616,14]
[359895246,1746406239450,-400.0,0.00035616,14]
[359895247,1746406239459,-400.0,0.00035616,14]
[359895248,1746406239469,-400.0,0.00035616,14]
[359895249,1746406239480,-400.0,0.00035616,14]
[359895250,1746406239490,-468.68,0.00035616,14]
[359895251,1746406239500,-400.0,0.00035616,14]
[359895252,1746406239510,-664.1,0.00035616,14]
[359895253,1746406239520,-400.0,0.00035616,14]
[359895254,1746406239529,-401.50876324,0.00035616,14]
[359895255,1746406239539,-400.0,0.00035616,14]
[359895256,1746406239549,-323.47,0.00035616,14]
[359895257,1746406239558,-400.0,0.00035616,14]
[359895258,1746406239568,-400.0,0.00035616,14]
[359895259,1746406239579,-1959.41,0.00035616,14]
[359895260,1746406239588,-400.0,0.00035616,14]
[359895261,1746406239598,-400.0,0.00035616,14]
[359895262,1746406239607,-400.0,0.00035616,14]
[359895263,1746406239617,-400.0,0.00035616,14]
[359895264,1746406239627,-400.0,0.00035616,14]
[359895265,1746406239637,-400.0,0.00035616,14]
[359895266,1746406239646,-561.24,0.00035616,14]
[359895267,1746406239655,-400.0,0.00035616,14]
[359895268,1746406239665,-400.0,0.00035616,14]
[359895269,1746406239675,-841.6056368,0.00035788,2]
[359895270,1746406239686,-805.69310103,0.0003579,2]
[359895271,1746406239695,-160.0,0.0003579,2]
[359895272,1746406239705,-500.0,0.00035873,5]
[359895273,1746406239715,-500.0,0.00035873,5]
[359895274,1746406239725,-500.0,0.00035873,5]
[359895275,1746406239734,-500.0,0.00035873,5]
[359895276,1746406239744,-500.0,0.00035873,2]
[359895277,1746406239754,-500.0,0.00035873,5]
[359895278,1746406239764,-500.0,0.00035873,5]
[359895279,1746406239774,-500.0,0.00035873,2]
[359895280,1746406239785,-397.4097288,0.00035873,5]
[359895281,1746406239795,-300.0,0.00035873,5]
[359895282,1746406239806,-500.0,0.00035873,5]
[359895283,1746406239816,-500.0,0.00035873,5]
[359895284,1746406239831,-500.0,0.00035873,5]
[359895285,1746406239842,-785.95,0.0003588,3]
[359895286,1746406239853,-182.19332975,0.0003588,3]
[359895287,1746406239862,-841.6056368,0.0003588,3]
[359895288,1746406239873,-421.74012052,0.0003588,3]
[359895289,1746406239883,-16016.2561672,0.0003588,3]
[359895290,1746406239893,-160.0,0.0003588,3]
[359895291,1746406239903,-400.0,0.0003589,14]
[359895292,1746406239913,-400.0,0.0003589,14]
[359895293,1746406239923,-400.0,0.0003589,14]
[359895294,1746406239933,-400.0,0.0003589,14]
[359895295,1746406239943,-400.0,0.0003589,14]
[359895296,1746406239953,-545.7,0.0003589,14]
[359895298,1746406239962,-400.0,0.0003589,14]
[359895299,1746406239972,-400.0,0.0003589,14]
[359895300,1746406239982,-400.0,0.0003589,14]
[359895301,1746406239991,-400.0,0.0003589,14]
[359895303,1746406240000,-212.51,0.0003589,14]
[359895305,1746406240010,-400.0,0.0003589,14]
[359895307,1746406240019,-400.0,0.0003589,14]
[359895308,1746406240029,-400.0,0.0003589,14]
[359895309,1746406240038,-400.0,0.0003589,14]
[359895310,1746406240048,-400.0,0.0003589,14]
[359895311,1746406240058,-400.0,0.0003589,14]
[359895312,1746406240068,-400.0,0.0003589,14]
[359895313,1746406240077,-400.0,0.0003589,14]
[359895314,1746406240087,-400.0,0.0003589,14]
[359895315,1746406240097,-154.64,0.0003589,14]
[359895316,1746406240107,-400.0,0.0003589,14]
[359895317,1746406240117,-400.0,0.0003589,14]
[359895319,1746406240127,-400.0,0.0003589,14]
[359895320,1746406240136,-400.0,0.0003589,14]
[359895321,1746406240146,-400.0,0.0003589,14]
[359895322,1746406240156,-400.0,0.0003589,14]
[359895323,1746406240167,-400.0,0.0003589,14]
[359895325,1746406240176,-400.0,0.0003589,14]
[359895327,1746406240187,-400.0,0.0003589,14]
[359895329,1746406240196,-400.0,0.0003589,14]
[359895331,1746406240206,-400.0,0.0003589,14]
[359895333,1746406240215,-400.0,0.0003589,14]
[359895335,1746406240226,-150.98,0.0003589,14]
[359895337,1746406240236,-400.0,0.0003589,14]
[359895339,1746406240245,-400.0,0.0003589,14]
[359895341,1746406240255,-400.0,0.0003589,14]
[359895343,1746406240264,-1000.0,0.0003589,14]
[359895345,1746406240274,-400.0,0.0003589,14]
[359895347,1746406240283,-400.0,0.0003589,14]
[359895349,1746406240293,-400.0,0.0003589,14]
[359895352,1746406240303,-400.0,0.0003589,14]
[359895353,1746406240312,-185.47,0.0003589,14]
[359895356,1746406240322,-400.0,0.0003589,14]
[359895358,1746406240332,-400.0,0.0003589,14]
[359895360,1746406240342,-434.46404568,0.0003589,14]
[359895362,1746406240351,-400.0,0.0003589,14]
[359895364,1746406240361,-400.0,0.0003589,14]
[359895366,1746406240371,-400.0,0.0003589,14]
[359895368,1746406240381,-400.0,0.0003589,14]
[359895370,1746406240391,-475.74,0.0003589,14]
[359895372,1746406240402,-400.0,0.0003589,14]
[359895374,1746406240413,-400.0,0.0003589,14]
[359895376,1746406240423,-524.18,0.0003589,14]
[359895378,1746406240433,-400.0,0.0003589,14]
[359895380,1746406240442,-484.63,0.0003589,14]
[359895382,1746406240454,-400.0,0.0003589,14]
[359895384,1746406240463,-454.81,0.0003589,14]
[359895386,1746406240474,-400.0,0.0003589,14]
[359895388,1746406240484,-295.35880521,0.0003589,14]
[359895390,1746406240493,-400.0,0.0003589,14]
[359895392,1746406240502,-400.0,0.0003589,14]
[359895394,1746406240511,-400.0,0.0003589,14]
[359895396,1746406240521,-331.91481921,0.0003589,14]
[359895398,1746406240530,-400.0,0.0003589,14]
[359895400,1746406240540,-400.0,0.0003589,14]
[359895402,1746406240550,-400.0,0.0003589,14]
[359895404,1746406240560,-401.84121099,0.0003589,14]
[359895405,1746406240570,-500.0,0.0003589,14]
[359895406,1746406240580,-400.0,0.0003589,14]
[359895407,1746406240590,-400.0,0.0003589,14]
[359895408,1746406240600,-400.0,0.0003589,14]
[359895409,1746406240610,-400.0,0.0003589,14]
[359895410,1746406240620,-400.0,0.0003589,14]
[359895411,1746406240632,-400.0,0.0003589,14]
[359895412,1746406240642,-470.69,0.0003589,14]
[359895413,1746406240651,-400.0,0.0003589,14]
[359895414,1746406240661,-400.0,0.0003589,14]
[359895415,1746406240670,-525.14,0.0003589,14]
[359895416,1746406240680,-400.0,0.0003589,14]
[359895417,1746406240689,-400.0,0.0003589,14]
[359895418,1746406240698,-186.19,0.0003589,14]
[359895419,1746406240708,-234.5,0.0003589,14]
[359895421,1746406240718,-400.0,0.0003589,14]
[359895422,1746406240728,-271.35920195,0.0003589,14]
[359895424,1746406240738,-403.44,0.0003589,14]
[359895426,1746406240747,-400.0,0.0003589,14]
[359895428,1746406240758,-400.0,0.0003589,14]
[359895430,1746406240767,-504.05101428,0.0003589,14]
[359895432,1746406240776,-501.66015232,0.0003589,14]
[359895435,1746406240786,-400.0,0.0003589,14]
[359895437,1746406240795,-400.0,0.0003589,14]
[359895438,1746406240805,-400.0,0.0003589,14]
[359895440,1746406240815,-400.0,0.0003589,14]
[359895443,1746406240824,-481.54,0.0003589,14]
[359895445,1746406240834,-534.05,0.0003589,14]
[359895447,1746406240844,-687.53,0.0003589,14]
[359895449,1746406240854,-400.0,0.0003589,14]
[359895451,1746406240864,-400.0,0.0003589,14]
[359895453,1746406240873,-400.0,0.0003589,14]
[359895454,1746406240883,-1000.0,0.0003589,14]
[359895456,1746406240893,-400.0,0.0003589,14]
[359895458,1746406240903,-542.69284476,0.0003589,14]
[359895461,1746406240913,-400.0,0.0003589,14]
[359895463,1746406240923,-400.0,0.0003589,14]
[359895465,1746406240933,-400.0,0.0003589,14]
[359895467,1746406240943,-400.0,0.0003589,14]
[359895469,1746406240952,-400.0,0.0003589,14]
[359895471,1746406240962,-400.0,0.0003589,14]
[359895473,1746406240972,-446.38,0.0003589,14]
[359895475,1746406240982,-400.0,0.0003589,14]
[359895477,1746406240991,-400.0,0.0003589,14]
[359895479,1746406241000,-400.0,0.0003589,14]
[359895482,1746406241010,-400.0,0.0003589,14]
[359895484,1746406241019,-413.95301629,0.0003589,14]
[359895487,1746406241030,-499.18208808,0.0003589,14]
[359895489,1746406241040,-400.0,0.0003589,14]
[359895491,1746406241050,-428.27,0.0003589,14]
[359895493,1746406241060,-400.0,0.0003589,14]
[359895495,1746406241070,-400.0,0.0003589,14]
[359895497,1746406241080,-400.0,0.0003589,14]
[359895499,1746406241089,-400.0,0.0003589,14]
[359895501,1746406241099,-513.93,0.0003589,14]
[359895503,1746406241109,-1883.66,0.0003589,14]
[359895505,1746406241119,-400.0,0.0003589,14]
[359895507,1746406241129,-400.0,0.0003589,14]
[359895509,1746406241138,-338.26,0.0003589,14]
[359895511,1746406241149,-211.59928299,0.0003589,14]
[359895513,1746406241158,-376.84,0.0003589,14]
[359895515,1746406241168,-400.0,0.0003589,14]
[359895517,1746406241178,-400.0,0.0003589,14]
[359895519,1746406241187,-553.05,0.0003589,14]
[359895521,1746406241197,-400.0,0.0003589,14]
[359895523,1746406241207,-400.0,0.0003589,14]
[359895525,1746406241217,-400.0,0.0003589,14]
[359895527,1746406241227,-400.0,0.0003589,14]
[359895529,1746406241237,-400.0,0.0003589,14]
[359895531,1746406241246,-400.0,0.0003589,14]
[359895533,1746406241256,-16016.2561672,0.0003589,3]
[359895535,1746406241265,-400.0,0.0003589,14]
[359895537,1746406241275,-400.0,0.0003589,14]
[359895539,1746406241284,-768.3,0.0003589,14]
[359895541,1746406241293,-400.0,0.0003589,14]
[359895543,1746406241303,-400.0,0.0003589,14]
[359895545,1746406241312,-400.0,0.0003589,14]
[359895547,1746406241322,-400.0,0.0003589,14]
[359895549,1746406241331,-560.86,0.0003589,14]
[359895551,1746406241340,-244.82,0.0003589,14]
[359895553,1746406241349,-932.24,0.0003589,14]
[359895555,1746406241359,-400.0,0.0003589,14]
[359895557,1746406241368,-1028.46,0.0003589,14]
[359895559,1746406241377,-400.0,0.0003589,14]
[359895561,1746406241386,-400.0,0.0003589,14]
[359895563,1746406241396,-480.69,0.0003589,14]
[359895565,1746406241408,-400.0,0.0003589,14]
[359895567,1746406241418,-400.0,0.0003589,14]
[359895569,1746406241426,-1176.96,0.0003589,14]
[359895571,1746406241435,-400.0,0.0003589,14]
[359895573,1746406241445,-400.0,0.0003589,14]
[359895575,1746406241455,-401.04,0.0003589,14]
[359895577,1746406241464,-6555.32,0.0003589,14]
[359895579,1746406241473,-400.0,0.0003589,14]
[359895582,1746406241485,-1924.84,0.0003589,14]
[359895584,1746406241494,-400.0,0.0003589,14]
[359895586,1746406241505,-210.17858371,0.0003589,14]
[359895588,1746406241514,-400.0,0.0003589,14]
[359895590,1746406241524,-759.62,0.0003589,14]
[359895592,1746406241533,-400.0,0.0003589,14]
[359895594,1746406241543,-313.84,0.0003589,14]
[359895596,1746406241553,-400.0,0.0003589,14]
[359895598,1746406241562,-468.68,0.0003589,14]
[359895600,1746406241573,-664.1,0.0003589,14]
[359895602,1746406241582,-400.0,0.0003589,14]
[359895604,1746406241591,-302.1780576,0.0003589,14]
[359895606,1746406241601,-400.0,0.0003589,14]
[359895608,1746406241610,-1959.41,0.0003589,14]
[359895610,1746406241619,-400.0,0.0003589,14]
[359895612,1746406241628,-400.0,0.0003589,14]
[359895614,1746406241638,-400.0,0.0003589,14]
[359895616,1746406241647,-400.0,0.0003589,14]
[359895618,1746406241656,-400.0,0.0003589,14]
[359895620,1746406241665,-561.24,0.0003589,14]
[359895622,1746406241675,-347.80454183,0.0003589,2]
[359895624,1746406241684,-15498.25,0.000359,30]
[359895626,1746406241693,-4330.68,0.000359,30]
[359895628,1746406241703,-234.02238537,0.000359,33]
[359895630,1746406241712,-234.02238527,0.00036072,34]
[359895632,1746406241722,-16016.2561672,0.00036154,3]
[359895634,1746406241731,-400.0,0.00036164,14]
[359895636,1746406241741,-400.0,0.00036164,14]
[359895638,1746406241750,-400.0,0.00036164,14]
[359895640,1746406241759,-400.0,0.00036164,14]
[359895642,1746406241769,-545.7,0.00036164,14]
[359895644,1746406241778,-400.0,0.00036164,14]
[359895646,1746406241787,-400.0,0.00036164,14]
[359895648,1746406241797,-400.0,0.00036164,14]
[359895650,1746406241806,-400.0,0.00036164,14]
[359895652,1746406241815,-400.0,0.00036164,14]
[359895654,1746406241824,-400.0,0.00036164,14]
[359895656,1746406241833,-400.0,0.00036164,14]
[359895658,1746406241842,-400.0,0.00036164,14]
[359895660,1746406241851,-400.0,0.00036164,14]
[359895662,1746406241861,-515.76,0.00036164,14]
[359895664,1746406241870,-400.0,0.00036164,14]
[359895666,1746406241879,-400.0,0.00036164,14]
[359895668,1746406241889,-400.0,0.00036164,14]
[359895670,1746406241898,-400.0,0.00036164,14]
[359895672,1746406241907,-400.0,0.00036164,14]
[359895674,1746406241917,-400.0,0.00036164,14]
[359895676,1746406241927,-400.0,0.00036164,14]
[359895678,1746406241936,-400.0,0.00036164,14]
[359895680,1746406241946,-179.93,0.00036164,14]
[359895682,1746406241955,-400.0,0.00036164,14]
[359895684,1746406241964,-400.0,0.00036164,14]
[359895686,1746406241974,-400.0,0.00036164,14]
[359895688,1746406241986,-400.0,0.00036164,14]
[359895690,1746406241995,-400.0,0.00036164,14]
[359895692,1746406242004,-400.0,0.00036164,14]
[359895694,1746406242012,-400.0,0.00036164,14]
[359895696,1746406242022,-1000.0,0.00036164,14]
[359895698,1746406242031,-400.0,0.00036164,14]
[359895700,1746406242040,-400.0,0.00036164,14]
[359895702,1746406242050,-400.0,0.00036164,14]
[359895704,1746406242059,-400.0,0.00036164,14]
[359895706,1746406242068,-400.0,0.00036164,14]
[359895708,1746406242078,-520.0,0.00036164,14]
[359895710,1746406242088,-500.0,0.00036164,14]
[359895712,1746406242097,-400.0,0.00036164,14]
[359895715,1746406242107,-157.53076727,0.00036164,14]
[359895717,1746406242116,-400.0,0.00036164,14]
[359895719,1746406242126,-475.74,0.00036164,14]
[359895721,1746406242135,-400.0,0.00036164,14]
[359895723,1746406242145,-400.0,0.00036164,14]
[359895725,1746406242155,-400.0,0.00036164,14]
[359895727,1746406242164,-400.0,0.00036164,14]
[359895729,1746406242173,-400.0,0.00036164,14]
[359895731,1746406242183,-400.0,0.00036164,14]
[359895733,1746406242192,-401.81594102,0.00036164,14]
[359895735,1746406242201,-400.0,0.00036164,14]
[359895737,1746406242211,-400.0,0.00036164,14]
[359895739,1746406242219,-400.0,0.00036164,14]
[359895741,1746406242229,-400.0,0.00036164,14]
[359895743,1746406242238,-500.0,0.00036164,14]
[359895745,1746406242247,-400.0,0.00036164,14]
[359895747,1746406242257,-400.0,0.00036164,14]
[359895749,1746406242267,-468.59018752,0.00036164,14]
[359895750,1746406242276,-400.0,0.00036164,14]
[359895752,1746406242285,-400.0,0.00036164,14]
[359895754,1746406242295,-400.0,0.00036164,14]
[359895757,1746406242304,-400.0,0.00036164,14]